Cogmind - Beta 14 @@@ ROGUE MODE // 2024.10.08 @ 01:58:05 Player: Socram Result: Destroyed by G-47 Trooper with Particle Gun Performance ------------- Evolutions (2) 1000 Regions Visited (4) 800 Robots Destroyed (56) 280 Value Destroyed (1590) 1590 Prototype IDs (3) 60 Alien Tech Used (0) 0 Bonus (11) 11 TOTAL SCORE: 3741 Bonus ------- High Alert Combat Kills 11 Cogmind --------- Core Integrity 0/550 Matter 272/300 Energy 100/100 System Corruption 0% Temperature Cool (9) Movement Core (200) Ox3 Location -8/Materials Parts ------- > --- POWER (1) -------- (None) > --- PROPULSION (3) --- (None) > --- UTILITY (4) ------ Medium Storage Unit Improved Signal Interpreter Targeting Computer > --- WEAPON (3) ------- (None) > --- INVENTORY (10) --- Light Nuclear Core Light Nuclear Core Seismic Detector Salvage Targeting Computer Matter Filter Assault Rifle Heavy Assault Rifle Shotgun Rocket Launcher Peak State ------------ > --- POWER ------------ Reinforced Ion Engine > --- PROPULSION ------- Improved Aluminum Leg Carbon-fiber Leg Carbon-fiber Leg > --- UTILITY ---------- Medium Storage Unit Improved Signal Interpreter Targeting Computer Light Armor Plating > --- WEAPON ----------- Autogun High-powered Shotgun Gauss Rifle > --- INVENTORY -------- Light Nuclear Core Light Nuclear Core Seismic Detector Salvage Targeting Computer Targeting Computer Matter Filter Assault Rifle Heavy Assault Rifle Shotgun Rocket Launcher [Rating: 27] Favorites ----------- Power Improved Ion Engine Engine Improved Ion Engine Propulsion Improved Aluminum Leg Treads Light Treads Leg Improved Aluminum Leg Utility Terrain Scanner Device Terrain Scanner Storage Medium Storage Unit Processor Targeting Computer Protection Weapon Shielding Weapon Shotgun Energy Gun Medium Laser Ballistic Gun Shotgun Launcher Grenade Launcher Build | -11 -10 -9 -9 -8 ------- Run | Yrd Mat Mat Min Mat Slots Evolved 4 | . . 2 . 2 Power . | . . . . . Propulsion 1 | . . . . 1 Utility 2 | . . 1 . 1 Weapon 1 | . . 1 . . Parts Attached 51 | 6 12 14 2 17 Power 4 | 1 1 1 . 1 Engine 4 | 1 1 1 . 1 Core . | . . . . . Reactor . | . . . . . Propulsion 15 | 2 4 3 2 4 Treads 5 | . 2 3 . . Leg 10 | 2 2 . 2 4 Wheel . | . . . . . Hover . | . . . . . Flight . | . . . . . Utility 9 | 1 3 2 . 3 Device 2 | . 2 . . . Storage 2 | 1 . 1 . . Processor 3 | . . 1 . 2 Hackware . | . . . . . Protection 2 | . 1 . . 1 Artifact . | . . . . . Weapon 23 | 2 4 8 . 9 Energy Gun 2 | 1 . 1 . . Energy Cannon . | . . . . . Ballistic Gun 16 | 1 3 6 . 6 Ballistic Cannon . | . . . . . Launcher 5 | . 1 1 . 3 Special Weapon . | . . . . . Impact Weapon . | . . . . . Slashing Weapon . | . . . . . Piercing Weapon . | . . . . . Special Melee Weapon . | . . . . . Unidentified Prototypes 1 | . . 1 . . Parts Lost 9 | . . . . 9 Power 1 | . . . . 1 Propulsion 1 | . . . . 1 Utility 3 | . . . . 3 Weapon 4 | . . . . 4 Highest Loss Streak 6 | . . . . 6 To Critical Strikes . | . . . . . Average Slot Usage (%) 97 | . 99 99 100 91 Engine 11 | . 14 11 11 8 Treads 8 | . 16 22 2 . Leg 15 | . 11 . 19 23 Device 9 | . 13 11 11 1 Storage 7 | . . 10 11 9 Processor 9 | . . 11 11 16 Protection 6 | . 13 . . 6 Energy Gun 2 | . 5 7 . . Ballistic Gun 25 | . 21 24 33 24 Peak Build Rating 27 | 6 7 15 16 27 Average Rating 14 | 4 6 11 15 22 On Entrance 8 | . 6 7 14 16 Naked Turns . | . . . . . Heaviest Build 33 | 14 15 27 27 33 Greatest Support 43 | 20 40 40 40 43 Greatest Overweight (x) 5 | . . . 1 5 Average Overweight (x) . | . . . . . Largest Inventory Capacity 10 | 8 8 10 10 10 Average Capacity 8 | 7 5 9 10 10 Most Carried 10 | 4 6 10 10 10 Average Carried 7 | 1 4 6 9 9 Final Capacity 10 | 8 5 10 10 10 Final Carried 10 | 4 4 10 9 9 Class Distribution -------------------- 38% | Mutant 35% | Gunner 25% | Scavenger-Gunner Dominant Class ---------------- Mutant | -10/Materials Gunner | -9/Materials Gunner | -9/Mines Scavenger-Gunner | -8/Materials Resources | -11 -10 -9 -9 -8 ----------- Run | Yrd Mat Mat Min Mat Matter Collected 1507 | 255 260 207 111 674 Remotely . | . . . . . Salvage Created 1800 | . 377 263 98 1062 Parts 126 | . 24 24 11 67 Haulers Intercepted . | . . . . . Recyclers Shooed 2 | 1 . . . 1 Parts Field Recycled . | . . . . . Retrieved Matter . | . . . . . Parts Self-Destructed . | . . . . . Prevented . | . . . . . Kills | -11 -10 -9 -9 -8 ------- Run | Yrd Mat Mat Min Mat Combat Hostiles Destroyed 49 | . 11 8 5 25 Guns 38 | . 9 5 5 19 AOE 11 | . 2 3 . 6 Classes Destroyed 9 | . 3 4 . 2 Worker 1 | . 1 . . . Recycler 3 | . . 1 . 2 Watcher 3 | . . 1 . 2 Swarmer 18 | . 3 4 4 7 Grunt 20 | . 8 1 . 11 Brawler 2 | . . 1 1 . Duelist 1 | . . . . 1 Sentry 7 | . . 2 . 5 Hunter 1 | . . . . 1 Best Kill Streak 9 | . 3 5 4 9 Combat Bots Only 8 | . 3 4 4 8 Max Kills in Single Turn 3 | . 2 2 2 3 Gunslinging 1 | . . . 1 . Exploded 3 | . 1 2 . 3 Melee . | . . . . . Uniques/NPCs Destroyed . | . . . . . Combat | -11 -10 -9 -9 -8 -------- Run | Yrd Mat Mat Min Mat Hostile Shots Fired 262 | . 50 29 6 177 Missed 78 | . 10 9 1 58 Damage Taken 2524 | . 462 202 45 1815 Core 616 | . 60 . . 556 Absorbed by Shields . | . . . . . Redirected to Shielding 30 | . 30 . . . Core Remaining (%) 92 | 100 76 . 100 . Volleys Fired 105 | 6 34 12 4 49 Largest 3 | 1 2 3 3 3 Hottest 90 | 20 70 90 69 76 Shots Fired 245 | 6 64 30 12 133 Gun 234 | 6 60 28 12 128 Cannon . | . . . . . Launcher 11 | . 4 2 . 5 Special . | . . . . . Kinetic 211 | 6 45 20 12 128 Thermal 23 | . 15 8 . . Explosive 11 | . 4 2 . 5 Electromagnetic . | . . . . . Robot Hit Streak 11 | 1 9 11 4 7 Robot Miss Streak 5 | 2 3 2 5 4 Penetration Max 1 | . . . . 1 Secondary Targets 5 | . . . 3 2 Max Gunslinging Chain 2 | . . . 2 1 Shots Hit Robots 148 | 2 35 18 5 88 Core Hits 107 | . 21 19 6 61 Critical Kills 1 | . . . . 1 Critical Parts Destroyed . | . . . . . Critical Strikes 2 | . 1 . . 1 Burn 1 | . 1 . . . Destroy 1 | . . . . 1 Melee Attacks . | . . . . . Impact . | . . . . . Slashing . | . . . . . Piercing . | . . . . . Sneak Attacks . | . . . . . Combat Hostiles . | . . . . . Follow-up Attacks . | . . . . . Damage Inflicted 2952 | 25 643 312 59 1913 Guns 2223 | 25 393 203 59 1543 Cannons . | . . . . . Explosions 722 | . 250 102 . 370 Melee . | . . . . . Ramming 7 | . . 7 . . Kinetic 2012 | 25 268 117 59 1543 Thermal 211 | . 125 86 . . Explosive 722 | . 250 102 . 370 Electromagnetic . | . . . . . Impact . | . . . . . Slashing . | . . . . . Piercing . | . . . . . Highest Corruption 1 | . . 1 1 . Average Corruption 1 | . . 1 1 . Corruption Purged . | . . . . . Corruption Blocked . | . . . . . Effects 7 | . . 1 6 . Message Errors 1 | . . 1 . . Matter Fused 3 | . . . 3 . Heat Flow Errors 1 | . . . 1 . Data Loss (minor) 1 | . . . 1 . Data Loss (major) 1 | . . . 1 . Overload Shots . | . . . . . Overflow Damage 10 | . . 10 . . Projectiles . | . . . . . Explosions 10 | . . 10 . . Melee . | . . . . . Knockbacks . | . . . . . Impact . | . . . . . Kinetic . | . . . . . Secondary . | . . . . . Self-Inflicted Damage 26 | . 26 . . . Shots 1 | . 1 . . . Rammed 1 | . . 1 . . Targets Rammed 1 | . . 1 . . Kicked . | . . . . . Crushed . | . . . . . Highest Temperature 352 | . 96 352 196 101 Average Temperature 38 | . 35 72 47 25 Received Heat Transfer 837 | . 213 30 . 594 Siege Activations . | . . . . . Robots Corrupted . | . . . . . Combat Hostiles . | . . . . . Parts Fried . | . . . . . Impact Corruptions . | . . . . . Robots Melted . | . . . . . Combat Hostiles . | . . . . . Parts Melted 3 | . 2 1 . . Heat Transferred 703 | . 444 259 . . Parts Sabotaged . | . . . . . Parts Stolen . | . . . . . Parts Stripped . | . . . . . Power Chain Reactions . | . . . . . Alert | -11 -10 -9 -9 -8 ------- Run | Yrd Mat Mat Min Mat Peak Influence 406 | . 173 237 180 406 Initial 45 | . . 45 45 . Average 115 | . 71 151 77 186 Maximum Alert Level 2 | . . 1 . 2 Low Security (%) 78 | 100 100 51 100 48 Level 1 21 | . . 48 . 50 Level 2 . | . . . . . Level 3 . | . . . . . Level 4 . | . . . . . Level 5 . | . . . . . High Security . | . . . . . Max Security . | . . . . . Squads Dispatched 13 | . 3 1 . 9 Investigation 4 | . 1 . . 3 Extermination . | . . . . . Reinforcement 6 | . 2 1 . 3 Assault . | . . . . . Garrison 3 | . . . . 3 Intercept . | . . . . . Searches Triggered . | . . . . . Construction Impeded 1 | . . . . 1 Haulers Reinforced . | . . . . . Active Scanning Responses . | . . . . . Cargo Convoy Interrupts . | . . . . . Stealth | -11 -10 -9 -9 -8 --------- Run | Yrd Mat Mat Min Mat Distress Signals 5 | . 2 2 . 1 Communications Jammed . | . . . . . Distress Signals . | . . . . . Times Spotted 82 | . 22 15 3 42 Peak Tracking Total 7 | . 3 7 2 7 Tactical Retreats 2 | . 1 . . 1 Traps | -11 -10 -9 -9 -8 ------- Run | Yrd Mat Mat Min Mat Traps Triggered 3 | . 1 1 . 1 Indirectly . | . . . . . Trap Hack Attempts . | . . . . . Triggered . | . . . . . Disarmed . | . . . . . Reprogrammed . | . . . . . Reused . | . . . . . Traps Extracted . | . . . . . Installed . | . . . . . Triggered . | . . . . . Machines | -11 -10 -9 -9 -8 ---------- Run | Yrd Mat Mat Min Mat Machines Disabled . | . . . . . Max in Single Turn . | . . . . . Machines Repaired . | . . . . . Machines Dismantled . | . . . . . Machines Sabotaged . | . . . . . Overloaded Fab Kills . | . . . . . Hacking | -11 -10 -9 -9 -8 --------- Run | Yrd Mat Mat Min Mat Machines Accessed 2 | . . . . 2 Terminals 1 | . . . . 1 Fabricators . | . . . . . Repair Stations 1 | . . . . 1 Recycling Units . | . . . . . Scanalyzers . | . . . . . Garrison Access . | . . . . . Total Hacks 7 | . . . . 7 Successful 3 | . . . . 3 Failed 4 | . . . . 4 Catastrophic . | . . . . . Database Lockouts . | . . . . . Manual . | . . . . . Terminals 3 | . . . . 3 Fabricators . | . . . . . Repair Stations 4 | . . . . 4 Recycling Units . | . . . . . Scanalyzers . | . . . . . Garrison Access . | . . . . . Terminal Hacks 1 | . . . . 1 Prototype ID Bank 1 | . . . . 1 Fabricator Hacks . | . . . . . Repair Station Hacks 2 | . . . . 2 Scan Component 2 | . . . . 2 Recycling Unit Hacks . | . . . . . Scanalyzer . | . . . . . Garrison Access Hacks . | . . . . . Unauthorized Hacks . | . . . . . Terminals . | . . . . . Fabricators . | . . . . . Repair Stations . | . . . . . Recycling Units . | . . . . . Scanalyzers . | . . . . . Garrison Access . | . . . . . Data Cores Recovered . | . . . . . Used . | . . . . . Hacking Detections 2 | . . . . 2 Full Trace Events 2 | . . . . 2 Feedback Events . | . . . . . Feedback Blocked . | . . . . . Robot Schematics Acquired . | . . . . . Robots Built . | . . . . . Authchips . | . . . . . Time . | . . . . . Total Robot Build Rating . | . . . . . Part Schematics Acquired . | . . . . . Parts Built . | . . . . . Authchips . | . . . . . Time . | . . . . . Total Part Build Rating . | . . . . . Parts Repaired . | . . . . . Time . | . . . . . Parts Recycled . | . . . . . Recycled Matter . | . . . . . Retrieved Matter . | . . . . . Retrieved Components . | . . . . . Parts Scanalyzed . | . . . . . Part Schematics Acquired . | . . . . . Parts Damaged . | . . . . . Bothacking | -11 -10 -9 -9 -8 ------------ Run | Yrd Mat Mat Min Mat Used RIF Installer . | . . . . . Robots Hacked . | . . . . . Non-combat . | . . . . . Combat . | . . . . . Robot Hacks Applied . | . . . . . Relay Couplers Released . | . . . . . Fabnet Peak Effective % . | . . . . . Robots Rewired . | . . . . . Allies Hacked . | . . . . . Hacks Repelled . | . . . . . Allies | -11 -10 -9 -9 -8 -------- Run | Yrd Mat Mat Min Mat Total Allies . | . . . . . Largest Group . | . . . . . Highest-Rated Group . | . . . . . Highest-Rated Ally . | . . . . . Total Orders . | . . . . . Ally Attacks . | . . . . . Total Damage . | . . . . . Kills . | . . . . . Allies Corrupted . | . . . . . Allies Melted . | . . . . . Intel | -11 -10 -9 -9 -8 ------- Run | Yrd Mat Mat Min Mat Robot Analysis Total . | . . . . . Derelict Logs Recovered 1 | . . . 1 . Drone Launches . | . . . . . Drone Recoveries . | . . . . . Exploration | -11 -10 -9 -9 -8 ------------- Run | Yrd Mat Mat Min Mat Turns Passed 3637 | 127 1086 528 851 1045 Spaces Moved 1931 | 94 640 258 426 513 Core 57 | 15 . . . 42 Treads 630 | . 325 258 47 . Legs 1244 | 79 315 . 379 471 Wheels . | . . . . . Hover . | . . . . . Flight . | . . . . . Fastest Speed 50 | 50 120 160 160 120 Average Speed 149 | 108 140 160 186 131 Slowest Speed 300 | 120 160 160 190 300 Overloaded Moves . | . . . . . Propulsion Burnouts . | . . . . . Robots Hopped . | . . . . . Cave-ins Triggered . | . . . . . Exploration Rate (%) 35 | 4 52 31 56 34 Regions Visited 4 Branch Regions 1 Pre-discovered Areas 1 | . . . 1 . Known Exits Taken . | . . . . . Unknown Exits Taken 4 | 1 1 1 1 . Scrap Searched 1 | . . . 1 . Spaces Dug . | . . . . . Terrain Destroyed 51 | . 3 13 . 35 Melee . | . . . . . Projectile 1 | . . . . 1 AOE 50 | . 3 13 . 34 Terrain Rammed . | . . . . . Walls Destroyed . | . . . . . Machines Disabled . | . . . . . Actions | -11 -10 -9 -9 -8 --------- Run | Yrd Mat Mat Min Mat Total 2494 | 109 769 351 475 790 Wait 332 | . 70 44 36 182 Move 1927 | 93 639 257 425 513 Hop . | . . . . . Pick Up 40 | 4 4 13 3 16 Fast Attach 12 | 6 3 1 1 1 Attach 13 | . 2 4 . 7 Detach 2 | . . 1 . 1 Swap 26 | . 7 9 1 9 Drop 36 | . 10 9 5 12 Fire 105 | 6 34 12 4 49 Melee . | . . . . . Ram . | . . . . . Kick . | . . . . . Crush 1 | . . 1 . . Escape Stasis . | . . . . . Rewire . | . . . . . Trap . | . . . . . Miscellaneous . | . . . . . Route ------- -11/Scrapyard -10/Materials (discovered 2 exits: [*Mat] / [*Min]) -9/Materials -9/Mines (discovered 2 exits: *Mat / [Exi]) -8/Materials History --------- Turn | Location | Event 9 | -11/Scrapyard | Discovered new exit (range 13) 128 | -11/Scrapyard | Entered Materials 310 | -10/Materials | Build established: Mutant 351 | -10/Materials | Discovered new exit (range 15) 1064 | -10/Materials | Discovered new exit (range 10) 1214 | -10/Materials | Entered another Materials area 1214 | -9/Materials | Evolved 2 slots: Utility x1, Weapon x1 1721 | -9/Materials | Discovered new exit (range 7) 1742 | -9/Materials | Entered Mines 1755 | -9/Mines | Assembled infested the area 1768 | -9/Mines | Met a Derelict bent on vengeance 1946 | -9/Mines | Build established: Gunner 2011 | -9/Mines | Discovered new exit (range 10) 2569 | -9/Mines | Discovered new exit (range 11) 2593 | -9/Mines | Entered Materials 2593 | -8/Materials | Evolved 2 slots: Propulsion x1, Utility x1 3097 | -8/Materials | Build established: Scavenger-Gunner 3552 | -8/Materials | Destroyed 8 combat bots 3594 | -8/Materials | Core integrity fell below 50% 3616 | -8/Materials | Lost 6 parts (1p1n1u3w) 3632 | -8/Materials | Core integrity fell below 20% 3638 | -8/Materials | Destroyed by G-47 Trooper with Particle Gun Last Messages --------------- 03528_ K-01 Serf collects debris. 03528_ R-06 Scavenger collects Imp. Aluminum Leg. 03529_ Y-45 Defender emerges from the garrison. 03531_ G-47 Trooper destroyed. 03531_ K-01 Serf collects debris. 03537_ Acquired 32 matter. 03537_ K-01 Serf collects debris. 03537_ Carbon-fiber Leg destroyed. 03539_ Acquired 34 matter. 03543_ K-01 Serf collects debris. 03558_ Hpw. Shotgun destroyed. 03559_ K-01 Serf collects debris. 03567_ Targeting Computer destroyed. 03568_ K-01 Serf cleans the Terminal. 03582_ K-01 Serf destroyed. 03585_ Autogun destroyed. 03606_ O-16 Technician: "IFF HANDSHAKE FAILED. SECURING TERMINAL." 03616_ ALERT: Hostiles spotted, dispatching reinforcements to Terminal M004. 03631_ Critical hit (Burn: +37). Map ----- +----------------------------------------------------+ | | | | | | | | | | | | | ?????????????????????????????????????????????????? | | ?????????????????????????????????????????????????? | | ?????????????????????????????????????????????????? | | ?????????????????????????????????????????????????? | | ?????????????????????????????????????????????????? | | ?????????????????????????????????????????????????? | | ?????????????????????????????????????????????????? | | ?????????????????????????????????????????????????? | | ?????????????????????????????????????????????????? | | ?????????????????????????????????????????????????? | | ?????????????????????????????????????????????????? | | ?????????????????????????????????????????????????? | | ?????????????????????????????????????????????????? | | ??????????????T"? ??# ???????????????????????????? | | ?????????????? ?# ??????????????????????????? | | ??????????????? ! # ??????????????????????????? | | ?????????????????? + ?????????????????????????? | | ######??????????????# #############+#####??????? | | #??????????????# ggg g ???? | | "" #??????????????# @ ug a ???? | | "" #??????????????# ]! ######/#??????????? | | "" #??????????????# ]! #?????????????????? | | #??????????????# ! u#?????????????????? | | #??????????????# #?????????????????? | | #??????????????# #?????????????????? | | ########????????????##+##### #?????????????????? | | #???????????????????# #?????????????????? | | """""?????????????????????# #?????????????????? | | """""?????????????????????+ #?????????????????? | | """""?????????????????????# #?????????????????? | | """""?????????????????????# Y#?????????????????? | | """""?????????????????????# #?????????????????? | | """""?????????????????????# #?????????????????? | | """""?????????????????????# #?????????????????? | | #???????????????????# ##????????????????? | | ########???????????????????# T#????????????????? | | ???????????????????????????# ##????????????????? | | ???????????????????????????# #?????????????????? | | ???????????????????????????# *#?????????????????? | | ???????????????????????????# =%#?????????????????? | | ???????????????????????????# !#?????????????????? | | ???????????????????????????# #?????????????????? | | ???????????????????????????# #?????????????????? | | ???????????????????????????# #?????????????????? | +----------------------------------------------------+ Best States ------------- Heat Dissipation 31 Energy Generation 12 Energy Capacity 265 Matter Stores 300 Matter Capacity 300 Sight Range 16 Terrain Scan Range 14 Terrain Scan Density 10 Armor Coverage 150 Weapon Shielding 33 Evasion (%) 55 Targeting Accuracy 10 Recoil Reduction 2 Item Schematics ----------------- None Robot Schematics ------------------ None Fabricated ------------ Nothing Alien Tech Used ----------------- None Achievements -------------- None Challenges ------------ None Game ------ Seed ReinforcedCoordinationBeacon Manual? 0 Play Time 00:43:59 Cumulative 14.9 hours Start 2024.10.05 @ 01:44:24 End 2024.10.08 @ 01:58:05 Sessions 3 Manual Loads 0 Difficulty Rogue Special Mode None Game No. 26 Rogue 26 Adventurer 0 Explorer 0 Win Type - Total 0 Types 0/0/0/0/0/0/0/0/0 Lore% 5 Gallery% 16 Achievement% 14 Wizard Run 0 Options --------- Layout 0 ASCII 0 Keyboard 0 Movement Numpad Keybinds 0 Fullscreen 1 Font 24/Smallcaps Map View 76x50 Zoom Use 0% Tactical HUD 1 Map Filters NONE Filters NONE Steam 1 RUN: c1af3896-369b-4feb-a943-8ce44d7e60c8